[Event "Gibraltar Challengers A 2020"]
[Site "Caleta"]
[Date "2020.01.21"]
[Round "2.25"]
[White "Perez Ruiz, Santiago"]
[Black "Tejaswini, Sagar"]
[Result "0-1"]
[ECO "D12"]
[WhiteElo "1953"]
[BlackElo "2180"]
[Annotator "ChessBase"]
[PlyCount "70"]
[EventDate "2020.01.20"]
[EventType "swiss"]
[EventCountry "GGB"]
[SourceTitle "playchess.com"]
[Source "ChessBase"]
[SourceQuality "1"]
[TimeControl "6600+10"]

1. d4 {[%emt 0:00:00]} d5 {[%emt 0:00:00]} 2. Nf3 {[%emt 0:00:11]} Nf6 {[%emt 0:00:08]} 3. c4 {[%emt 0:00:14]} c6 {[%emt 0:00:13]} 4. e3 {[%emt 0:02:32]} Bf5 {[%emt 0:00:32]} 5. Nc3 {[%emt 0:00:27]} e6 {[%emt 0:00:46]} 6. cxd5 {[%emt 0:00:59]} exd5 {[%emt 0:03:34]} 7. Bd3 {[%emt 0:01:08]} Bxd3 {[%emt 0:01:18]} 8. Qxd3 {[%emt 0:00:15]} Be7 {[%emt 0:02:06]} 9. Ne5 {[%emt 0:02:25]} Nfd7 {[%emt 0:04:59]} 10. f4 {[%emt 0:04:36]} Nxe5 {[%emt 0:01:50]} 11. fxe5 {[%emt 0:00:27]} f6 {[%emt 0:05:55]} 12. O-O {[%emt 0:02:26]} O-O {[%emt 0:02:39]} 13. e4 {[%emt 0:05:02]} fxe5 {[%emt 0:03:38]} 14. exd5 {[%emt 0:13:08]} exd4 {[%emt 0:04:51]} 15. Qxd4 {[%emt 0:02:09]} Na6 {[%emt 0:03:13]} 16. Be3 {[%emt 0:01:38]} Bc5 {[%emt 0:05:20]} 17. Qd3 {[%emt 0:00:32]} Qb6 {[%emt 0:06:12]} 18. Bxc5 {[%emt 0:07:00]} Qxc5+ {[%emt 0:00:17]} 19. Kh1 {[%emt 0:00:10]} Nb4 {[%emt 0:01:40]} 20. Qh3 {[%emt 0:12:52]} Nxd5 {[%emt 0:01:52]} 21. Qe6+ {[%emt 0:00:54]} Kh8 {[%emt 0:00:19]} 22. Nxd5 {[%emt 0:02:21]} cxd5 {[%emt 0:03:42]} 23. Qd7 {[%emt 0:02:05]} Qc6 {[%emt 0:08:38]} 24. Qe7 {[%emt 0:03:05]} Rfe8 {[%emt 0:03:01]} 25. Qf7 {[%emt 0:00:23]} Rad8 {[%emt 0:03:16]} 26. Rac1 {[%emt 0:00:23]} Qd7 {[%emt 0:01:39]} 27. Qf4 {[%emt 0:02:26]} Rc8 {[%emt 0:02:32]} 28. Rxc8 {[%emt 0:03:30]} Qxc8 {[%emt 0:00:10]} 29. h4 {[%emt 0:00:51]} h6 {[%emt 0:01:51]} 30. Rc1 {[%emt 0:01:25]} Qd8 {[%emt 0:01:53]} 31. Rc7 {[%emt 0:00:17]} Re4 {[%emt 0:03:28]} 32. Qg3 {[%emt 0:00:58]} Qf6 {[%emt 0:05:23]} 33. Rxb7 {[%emt 0:02:46]} Rxh4+ {[%emt 0:00:23]} 34. Kg1 {[%emt 0:00:11]} Qd4+ {[%emt 0:00:56]} 35. Kf1 {[%emt 0:00:30]} Rf4+ {[%emt 0:02:35]} 0-1

[Event "Gibraltar Challengers A 2020"]
[Site "Caleta"]
[Date "2020.01.21"]
[Round "2.26"]
[White "Aura, Kristian"]
[Black "Vila Dupla, Aurelio"]
[Result "0-1"]
[ECO "D85"]
[WhiteElo "1928"]
[BlackElo "2092"]
[Annotator "NA"]
[PlyCount "52"]
[EventDate "2020.01.20"]
[EventType "swiss"]
[EventCountry "GGB"]
[SourceTitle "playchess.com"]
[Source "ChessBase"]
[SourceQuality "1"]
[TimeControl "6600+10"]

1. d4 {[%emt 0:00:00]} Nf6 {[%emt 0:00:09]} 2. Nf3 {[%emt 0:00:00]} (2. c4 g6 3. Nc3 d5 4. cxd5 Nxd5 5. e4 Nxc3 6. bxc3 Bg7 7. Be3 c5 8. Rc1 O-O 9. Nf3 Qa5 10. Qd2 cxd4 11. cxd4 Qxd2+ 12. Nxd2 Rd8 13. Nf3 Nc6 14. d5 Nb4 15. Bd2 Na6 16. Bg5 Kf8 17. Bxa6 bxa6 18. O-O Rb8 19. Rc7 Rd7 20. Rc6 Rdb7 21. Bf4 Ra8 22. Rfc1 Bd7 {1-0 (58) Carlsen,M (2875)-Mamedyarov,S (2774) Stavanger 2019}) 2... g6 {[%emt 0:00:20]} 3. c4 {[%emt 0:00:08]} Bg7 {[%emt 0:00:11]} 4. Nc3 {[%emt 0:00:09]} d5 {[%emt 0:00:13]} 5. cxd5 {[%emt 0:00:08]} Nxd5 {[%emt 0:00:06]} 6. e4 {[%emt 0:00:06]} Nxc3 {[%emt 0:00:09]} 7. bxc3 {[%emt 0:00:05]} c5 {[%emt 0:01:28]} 8. Be3 {[%emt 0:00:18]} Qa5 {[%emt 0:01:29]} 9. Qd2 {[%emt 0:00:18]} Nc6 {[%emt 0:02:16]} 10. Rc1 {[%emt 0:01:14]} cxd4 {[%emt 0:02:51]} 11. cxd4 {[%emt 0:00:15]} Qxd2+ {[%emt 0:00:05]} 12. Kxd2 {[%emt 0:00:20]} O-O {[%emt 0:00:31]} 13. d5 {[%emt 0:03:44]} Rd8 {[%emt 0:01:59]} 14. Ke1 {[%emt 0:00:22]} Nb4 {[%emt 0:02:59]} 15. a3 {[%emt 0:02:44] D85: Exchange Grünfeld: Unusual White 7th moves and lines with 7 Nf3} Na2 {[%emt 0:00:30]} 16. Rc2 {[%emt 0:02:25]} (16. Rc4 $1 $11 {keeps the balance.}) 16... Nc3 {[%emt 0:00:07]} 17. Bd3 $146 {[%emt 0:03:29]} ({Predecessor:} 17. Nd2 e6 18. Bg5 Rd7 19. dxe6 fxe6 20. Bc4 Kf7 21. f4 b5 22. Bb3 h6 {1-0 (57) Werner,G (2165)-Schumacher,C (2020) Germany 2015}) 17... f5 {[%emt 0:01:28]} 18. Nd2 {[%emt 0:38:33]} fxe4 {[%emt 0:04:02]} 19. Nxe4 {[%emt 0:01:40]} Bf5 {[%emt 0:07:36]} 20. f3 {[%emt 0:05:24]} Nxd5 {[%emt 0:05:00]} 21. Bc4 {[%emt 0:02:04]} Kf8 {[%emt 0:00:25]} 22. Re2 {[%emt 0:23:39]} Nxe3 {[%emt 0:04:25]} 23. Rxe3 {[%emt 0:00:10]} Rac8 {[%emt 0:00:13]} 24. Bf1 {[%emt 0:04:37]} Rc1+ {[%emt 0:01:28]} 25. Ke2 {[%emt 0:00:13]} Rc2+ {[%emt 0:00:55]} 26. Ke1 $19 {[%emt 0:00:18]} Bxe4 {[%emt 0:00:40]} 0-1

[Event "Gibraltar Challengers A 2020"]
[Site "Caleta"]
[Date "2020.01.21"]
[Round "2.27"]
[White "Vinal Gutierrez, Pedro"]
[Black "Fischer, Robert"]
[Result "1-0"]
[ECO "B13"]
[WhiteElo "2069"]
[BlackElo "1923"]
[Annotator "NA"]
[PlyCount "79"]
[EventDate "2020.01.20"]
[EventType "swiss"]
[EventCountry "GGB"]
[SourceTitle "playchess.com"]
[Source "ChessBase"]
[SourceQuality "1"]
[TimeControl "6600+10"]

1. d4 {[%emt 0:00:00]} d5 {[%emt 0:00:00]} 2. Bf4 {[%emt 0:00:01]} c5 {[%emt 0:00:30]} 3. e3 {[%emt 0:00:15]} cxd4 {[%emt 0:00:26]} 4. exd4 {[%emt 0:00:13]} Nc6 {[%emt 0:00:13]} 5. c3 {[%emt 0:01:03]} Bf5 {[%emt 0:00:38]} 6. Qb3 {[%emt 0:01:29] B13: Caro-Kann: Exchange Variation and Panov-Botvinnik Attack} (6. Nd2 e6 7. Ngf3 Bd6 8. Bxd6 Qxd6 9. Nh4 Bg6 10. g3 Nf6 11. Nxg6 hxg6 12. Bd3 O-O-O 13. Nf3 {½-½ (55) Duda,J (2758)-Artemiev,V (2731) Moscow 2019}) 6... Qd7 {[%emt 0:01:26]} 7. Nf3 {[%emt 0:00:28]} e6 {[%emt 0:06:40]} 8. Nbd2 {[%emt 0:01:53]} Nf6 {[%emt 0:07:32]} 9. Ne5 {[%emt 0:00:57]} Qc8 {[%emt 0:02:13]} 10. Be2 {[%emt 0:05:06]} Be7 {[%emt 0:02:26]} (10... Bd6 $11) 11. g4 {[%emt 0:03:19]} Bg6 {[%emt 0:09:34] [#]} 12. h4 $1 {[%emt 0:00:48]} h5 $146 {[%emt 0:01:55]} ({Predecessor:} 12... h6 13. Nxg6 fxg6 14. Qc2 Kf7 15. h5 {1-0 (38) Mohammadi,H (2267)-Akbarinia,S (2278) Mashad 2003}) 13. Nxg6 {[%emt 0:00:44]} fxg6 {[%emt 0:00:02]} 14. g5 {[%emt 0:01:20]} Nd7 {[%emt 0:01:27]} 15. Bg3 {[%emt 0:03:55]} Nf8 {[%emt 0:05:04]} (15... Bd8 $16 16. Bd3 Ne7) 16. Nf3 {[%emt 0:01:54]} Bd8 {[%emt 0:01:55]} 17. O-O {[%emt 0:02:19]} Bc7 {[%emt 0:01:42]} 18. Kg2 {[%emt 0:00:51]} Bxg3 {[%emt 0:00:53]} 19. fxg3 {[%emt 0:00:14]} Qc7 {[%emt 0:01:28]} 20. Rae1 {[%emt 0:05:49]} O-O-O {[%emt 0:01:20]} 21. Bb5 {[%emt 0:01:00]} Ne7 {[%emt 0:05:05]} 22. Ne5 {[%emt 0:03:16]} Nf5 {[%emt 0:01:45]} 23. Rf3 {[%emt 0:02:28]} Kb8 {[%emt 0:01:48]} 24. Bd3 {[%emt 0:02:47]} Rd6 {[%emt 0:05:27]} 25. Qc2 {[%emt 0:03:05]} Rb6 {[%emt 0:02:26]} 26. Re2 {[%emt 0:01:18]} Rg8 {[%emt 0:03:14]} 27. Qd2 {[%emt 0:00:41]} Qc8 {[%emt 0:03:32]} 28. a4 {[%emt 0:05:20]} Qe8 {[%emt 0:03:34]} 29. a5 {[%emt 0:00:53]} Rd6 {[%emt 0:00:59]} 30. Qf4 {[%emt 0:00:57]} Ka8 {[%emt 0:03:25]} 31. Rff2 {[%emt 0:02:30]} Rd8 {[%emt 0:01:51]} 32. b4 {[%emt 0:01:40]} Nd6 {[%emt 0:00:57]} 33. a6 {[%emt 0:01:45]} b6 {[%emt 0:03:06]} 34. Nf7 {[%emt 0:03:06]} Nxf7 {[%emt 0:01:43]} 35. Qxf7 {[%emt 0:00:07]} Qxf7 {[%emt 0:01:49]} 36. Rxf7 {[%emt 0:00:08]} Rd6 {[%emt 0:01:32]} 37. Bb5 {[%emt 0:01:31]} Kb8 $18 {[%emt 0:03:56]} 38. Ref2 {[%emt 0:00:42]} Nh7 {[%emt 0:00:36]} 39. Rb7+ {[%emt 0:00:14]} Kc8 {[%emt 0:01:55]} 40. Rxa7 {[%emt 0:00:26]} 1-0

[Event "Gibraltar Challengers A 2020"]
[Site "Caleta"]
[Date "2020.01.21"]
[Round "2.28"]
[White "Lung, Liviu-Catalin"]
[Black "Brown, David"]
[Result "1-0"]
[ECO "C60"]
[WhiteElo "2041"]
[BlackElo "1916"]
[Annotator "NA"]
[PlyCount "90"]
[EventDate "2020.01.20"]
[EventType "swiss"]
[EventCountry "GGB"]
[SourceTitle "playchess.com"]
[Source "ChessBase"]
[SourceQuality "1"]
[TimeControl "6600+10"]

1. e4 {[%emt 0:00:00]} e5 {[%emt 0:05:57]} 2. Nf3 {[%emt 0:00:58]} Nc6 {[%emt 0:00:53]} 3. Bb5 {[%emt 0:00:05]} Nge7 {[%emt 0:00:20]} 4. c3 {[%emt 0:00:17]} d6 {[%emt 0:01:34]} 5. d4 {[%emt 0:00:42]} Bd7 {[%emt 0:00:59]} 6. O-O {[%emt 0:04:55]} Ng6 {[%emt 0:01:26]} 7. Nbd2 {[%emt 0:03:41] C60: Ruy Lopez: Unusual Black 3rd moves and 3...g6} (7. d5 Nb8 8. Bxd7+ Nxd7 9. c4 Be7 10. Nc3 O-O 11. g3 h6 12. Be3 Nf6 13. Ne1 Nh7 14. f3 Qd7 15. Nd3 {½-½ (47) Karjakin,S (2777)-Dvalishvili,P (2439) Moscow 2014}) 7... Be7 {[%emt 0:00:29]} 8. Re1 {[%emt 0:00:40]} O-O {[%emt 0:08:19]} 9. Nf1 {[%emt 0:00:40]} Nh4 {[%emt 0:02:59]} 10. Bxc6 $146 {[%emt 0:06:36]} ({Predecessor:} 10. Nxh4 Bxh4 11. Ng3 Bf6 12. Be3 g6 {½-½ (12) Grosar,A (2475)-Sermek,D (2515) Ptuj 1995}) 10... Nxf3+ {[%emt 0:04:10]} 11. Qxf3 {[%emt 0:00:10]} Bxc6 {[%emt 0:00:22]} 12. Ng3 {[%emt 0:02:16]} Bg5 {[%emt 0:07:06]} 13. Qg4 {[%emt 0:05:06]} Bxc1 {[%emt 0:01:36]} 14. Raxc1 {[%emt 0:00:06]} Qf6 {[%emt 0:17:22]} 15. d5 {[%emt 0:01:42]} Be8 {[%emt 0:00:11]} 16. c4 {[%emt 0:05:45]} b6 {[%emt 0:00:12]} 17. Rc3 {[%emt 0:05:42]} a5 {[%emt 0:04:55]} 18. Rf3 {[%emt 0:11:56]} Qg6 {[%emt 0:02:11]} 19. Qh4 {[%emt 0:00:20]} f6 {[%emt 0:11:59]} 20. Nf5 {[%emt 0:03:10]} Qh5 $1 {[%emt 0:01:32]} 21. Qg3 {[%emt 0:04:04]} g6 {[%emt 0:01:45]} 22. h3 {[%emt 0:08:22]} Bd7 {[%emt 0:11:19]} 23. Ne3 {[%emt 0:03:10]} f5 {[%emt 0:06:13]} 24. exf5 {[%emt 0:00:41]} Bxf5 {[%emt 0:00:01]} 25. Qh2 {[%emt 0:10:52]} Bd7 {[%emt 0:04:20]} 26. g4 {[%emt 0:01:19]} Qh6 {[%emt 0:00:57]} 27. Rg3 {[%emt 0:01:29]} Rf4 {[%emt 0:01:59]} 28. b3 {[%emt 0:07:19]} Raf8 {[%emt 0:00:10]} 29. Rf1 {[%emt 0:00:20]} Rf3 {[%emt 0:05:11]} (29... Rd4 $142 30. a4 Rd3) 30. Qg2 {[%emt 0:00:36]} e4 {[%emt 0:03:18]} 31. Re1 {[%emt 0:02:50]} Qh4 {[%emt 0:02:34]} 32. Nf1 {[%emt 0:01:04]} Rxf2 {[%emt 0:01:09]} 33. Qxf2 {[%emt 0:00:13]} Rxf2 {[%emt 0:00:01]} 34. Kxf2 {[%emt 0:00:20]} Qf6+ {[%emt 0:00:32]} 35. Kg1 {[%emt 0:00:48]} Qd4+ {[%emt 0:00:10]} 36. Rge3 {[%emt 0:00:18]} h5 {[%emt 0:00:13]} 37. gxh5 {[%emt 0:01:10]} gxh5 {[%emt 0:00:01]} 38. Ng3 {[%emt 0:00:34]} Bxh3 {[%emt 0:00:45]} 39. Nxe4 {[%emt 0:00:28]} h4 {[%emt 0:00:49]} 40. Kh2 {[%emt 0:01:16]} Bg4 {[%emt 0:00:18]} 41. Nf2 $15 {[%emt 0:01:15]} Qf4+ {[%emt 0:00:10]} 42. Kg1 {[%emt 0:00:17]} Bf3 {[%emt 0:00:19]} 43. Re8+ {[%emt 0:00:56]} Kg7 {[%emt 0:00:07]} 44. R1e7+ {[%emt 0:00:26]} Kg6 {[%emt 0:00:20]} 45. Rg8+ {[%emt 0:00:08]} Kh6 {[%emt 0:00:06]} 1-0

[Event "Gibraltar Challengers A 2020"]
[Site "Caleta"]
[Date "2020.01.21"]
[Round "2.29"]
[White "Rakotomaharo, Yves Andre"]
[Black "Tranter, Stephen"]
[Result "0-1"]
[ECO "B00"]
[WhiteElo "2020"]
[BlackElo "1899"]
[Annotator "NA"]
[PlyCount "112"]
[EventDate "2020.01.20"]
[EventType "swiss"]
[EventCountry "GGB"]
[SourceTitle "playchess.com"]
[Source "ChessBase"]
[SourceQuality "1"]
[TimeControl "6600+10"]

1. d4 {[%emt 0:06:28]} e6 {[%emt 0:00:03]} 2. e4 {[%emt 0:00:17]} b6 {[%emt 0:00:11]} 3. Bd3 {[%emt 0:00:33]} Bb7 {[%emt 0:00:13]} 4. Nf3 {[%emt 0:00:30]} Nf6 {[%emt 0:00:19]} 5. Qe2 {[%emt 0:00:23]} c5 {[%emt 0:00:26]} 6. c3 {[%emt 0:00:15]} Nc6 {[%emt 0:00:49] B00: Queen's Fianchetto Defence, Nimzowitsch Defence} (6... Be7 7. O-O d5 8. e5 Nfd7 9. Nbd2 Qc8 10. Re1 cxd4 11. cxd4 Ba6 12. Nf1 Bxd3 13. Qxd3 Qa6 14. Qd1 Nc6 15. a3 {1-0 (29) Vitiugov,N (2725)-Edouard,R (2636) Berlin 2015}) 7. d5 {[%emt 0:02:39]} Ne7 {[%emt 0:00:47]} 8. c4 {[%emt 0:00:59]} d6 {[%emt 0:05:17]} 9. dxe6 {[%emt 0:09:05]} (9. Bc2 $18) 9... fxe6 {[%emt 0:00:07]} 10. Bg5 $146 {[%emt 0:00:51]} ({Predecessor:} 10. O-O e5 11. Nc3 Nc6 12. Nd5 Be7 13. Be3 O-O 14. a3 Nxd5 15. exd5 {1-0 (35) Gusain,H (2108)-Shah,D (1791) Nagpur 2008}) 10... e5 {[%emt 0:00:54]} (10... Nc6 $11) 11. Nc3 {[%emt 0:03:18]} (11. Bxf6 $5 gxf6 12. Nc3 $14) 11... Qd7 {[%emt 0:01:59]} 12. O-O-O {[%emt 0:00:42]} O-O-O {[%emt 0:04:47]} 13. Bc2 {[%emt 0:00:35]} Nc6 {[%emt 0:08:22]} 14. Ba4 {[%emt 0:00:42]} Qf7 {[%emt 0:01:05]} 15. Nd5 {[%emt 0:05:01]} Ne7 {[%emt 0:11:13]} 16. Kb1 {[%emt 0:02:14]} Nfxd5 {[%emt 0:05:11]} 17. cxd5 {[%emt 0:00:20]} h6 {[%emt 0:00:10]} 18. Bc1 {[%emt 0:02:48]} g5 {[%emt 0:01:24]} 19. Nd2 {[%emt 0:01:55]} Ng6 {[%emt 0:02:03]} 20. g3 {[%emt 0:00:05]} Be7 {[%emt 0:06:17]} 21. Bb5 {[%emt 0:04:53]} h5 {[%emt 0:02:22] [#]} 22. h3 {[%emt 0:03:34]} ({White should try} 22. a4 $1 $18) 22... Rdf8 {[%emt 0:02:59]} 23. Rdf1 {[%emt 0:00:16]} Rh7 {[%emt 0:07:38]} 24. a4 {[%emt 0:00:13]} Bd8 {[%emt 0:01:17]} 25. Nc4 {[%emt 0:02:10]} Kc7 {[%emt 0:01:24]} 26. Ne3 {[%emt 0:01:13]} Ne7 {[%emt 0:01:16]} 27. a5 {[%emt 0:01:07]} Qf3 {[%emt 0:03:38]} 28. axb6+ {[%emt 0:00:12]} axb6 {[%emt 0:00:13]} 29. Qc2 {[%emt 0:00:06]} h4 {[%emt 0:03:02]} 30. Be2 {[%emt 0:01:01]} Qf7 {[%emt 0:02:31]} 31. Qa4 {[%emt 0:04:13]} Ng6 {[%emt 0:02:12]} 32. Bg4 {[%emt 0:07:42]} Qe8 $1 {[%emt 0:03:54]} 33. Qxe8 {[%emt 0:05:44]} Rxe8 {[%emt 0:00:03]} 34. Bf5 {[%emt 0:00:13]} Rg7 {[%emt 0:00:56]} 35. Ng4 {[%emt 0:00:33]} Ba6 {[%emt 0:03:56]} 36. Rd1 {[%emt 0:09:26]} Rf8 {[%emt 0:04:25]} 37. Bxg6 {[%emt 0:00:57]} Rxg6 {[%emt 0:00:15]} 38. gxh4 {[%emt 0:05:13]} gxh4 {[%emt 0:00:31]} 39. Rhe1 {[%emt 0:00:56]} Bc8 {[%emt 0:04:40]} 40. Rf1 {[%emt 0:07:32]} Bxg4 {[%emt 0:01:00]} 41. hxg4 {[%emt 0:00:07]} Rxg4 {[%emt 0:00:12]} 42. f3 {[%emt 0:01:47]} Rg2 {[%emt 0:02:05]} 43. f4 {[%emt 0:01:15]} Re2 {[%emt 0:06:21]} 44. fxe5 {[%emt 0:00:27]} Rxf1 {[%emt 0:00:08]} 45. exd6+ {[%emt 0:00:07]} Kxd6 {[%emt 0:00:10]} 46. e5+ {[%emt 0:01:29]} Rxe5 {[%emt 0:01:16]} 47. Rxf1 {[%emt 0:00:09]} Rxd5 {[%emt 0:00:18]} 48. Bf4+ {[%emt 0:00:45]} Kc6 {[%emt 0:00:18]} 49. Rg1 {[%emt 0:01:06]} Kb5 {[%emt 0:01:34]} 50. Rg6 {[%emt 0:02:21]} Rf5 {[%emt 0:00:33]} 51. Bb8 $19 {[%emt 0:00:57]} Bf6 {[%emt 0:00:28]} 52. Rg2 {[%emt 0:01:10]} h3 {[%emt 0:00:30]} 53. Rh2 {[%emt 0:00:55]} Rf3 {[%emt 0:00:03]} 54. Kc2 {[%emt 0:00:05]} Kc4 {[%emt 0:00:13]} 55. Bc7 {[%emt 0:00:38]} b5 {[%emt 0:00:09]} 56. Re2 {[%emt 0:00:31]} Bd4 {[%emt 0:00:15]} 0-1

[Event "Gibraltar Challengers A 2020"]
[Site "Caleta"]
[Date "2020.01.21"]
[Round "2.30"]
[White "Gostelow, David W"]
[Black "Kozarcanin, Sead"]
[Result "1-0"]
[ECO "D02"]
[WhiteElo "1901"]
[BlackElo "2019"]
[Annotator "NA"]
[PlyCount "100"]
[EventDate "2020.01.20"]
[EventType "swiss"]
[EventCountry "GGB"]
[SourceTitle "playchess.com"]
[Source "ChessBase"]
[SourceQuality "1"]
[TimeControl "6600+10"]

1. d4 {[%emt 0:00:00]} d5 {[%emt 0:00:07]} 2. Bf4 {[%emt 0:00:00]} c5 {[%emt 0:00:17]} 3. e3 {[%emt 0:00:04]} Nc6 {[%emt 0:00:06]} 4. c3 {[%emt 0:00:35]} e6 {[%emt 0:01:02]} 5. Nf3 {[%emt 0:00:16]} Bd6 {[%emt 0:00:19]} 6. Bg3 {[%emt 0:01:14]} Nf6 {[%emt 0:00:39]} 7. Nbd2 {[%emt 0:02:52]} O-O {[%emt 0:01:09]} 8. Bd3 {[%emt 0:02:11]} h6 {[%emt 0:02:09] D02: 1 d4 d5 2 Nf3 sidelines, including 2...Nf6 3 g3 and 2...Nf6 3 Bf4} (8... b6 9. Qe2 Bb7 10. Rd1 Re8 11. e4 Be7 12. e5 Nh5 13. h4 cxd4 14. Nxd4 Nxg3 15. fxg3 Bc5 16. N2f3 f5 {½-½ (45) Esipenko,A (2593)-Karjakin,S (2753) St Petersburg 2018}) 9. Ne5 {[%emt 0:02:30]} Qc7 {[%emt 0:06:35]} 10. f4 {[%emt 0:00:36]} Nd7 {[%emt 0:08:01]} 11. O-O {[%emt 0:06:22]} f5 $146 {[%emt 0:03:56]} ({Predecessor:} 11... Qb6 12. Rb1 cxd4 13. exd4 Ndxe5 14. fxe5 Nxe5 15. Bxe5 Bxe5 16. Nf3 {0-1 (28) Lenz,J (1083)-Harney,T (2028) LSS email 2013}) 12. Bh4 {[%emt 0:10:04]} Nf6 {[%emt 0:03:51]} 13. Bxf6 {[%emt 0:07:50]} Rxf6 {[%emt 0:01:20]} 14. Rf2 {[%emt 0:06:57]} Bd7 {[%emt 0:03:01]} 15. Qh5 {[%emt 0:07:33]} Be8 {[%emt 0:00:41]} 16. Qe2 {[%emt 0:10:35]} g5 {[%emt 0:04:37]} 17. g3 {[%emt 0:04:39]} Qg7 {[%emt 0:09:08]} 18. Kh1 {[%emt 0:02:17]} g4 {[%emt 0:00:23]} 19. Rg1 {[%emt 0:01:22]} h5 {[%emt 0:00:14]} 20. h3 {[%emt 0:04:48]} Rh6 {[%emt 0:08:19]} 21. Rh2 {[%emt 0:02:24]} Bxe5 {[%emt 0:00:57]} 22. dxe5 {[%emt 0:06:00]} Rd8 {[%emt 0:01:49]} 23. hxg4 {[%emt 0:04:35]} hxg4 {[%emt 0:02:12]} 24. Rgg2 {[%emt 0:00:14]} d4 {[%emt 0:03:32]} 25. e4 {[%emt 0:05:31]} dxc3 {[%emt 0:06:04]} 26. bxc3 {[%emt 0:00:05]} Ne7 {[%emt 0:09:01]} 27. Rxh6 {[%emt 0:05:24]} Qxh6+ {[%emt 0:00:01]} 28. Rh2 {[%emt 0:00:07]} Qg6 {[%emt 0:01:05]} 29. Nc4 {[%emt 0:01:59]} Bc6 {[%emt 0:11:33]} 30. Nd6 $11 {[%emt 0:00:18]} fxe4 {[%emt 0:05:00]} 31. Bxe4 {[%emt 0:01:38]} Rxd6 {[%emt 0:02:23]} 32. exd6 {[%emt 0:10:32]} Bxe4+ {[%emt 0:02:04]} 33. Kg1 {[%emt 0:00:03]} Nc6 {[%emt 0:00:25]} 34. Rh4 {[%emt 0:00:18]} Bf3 {[%emt 0:02:07]} 35. Qd2 {[%emt 0:00:08]} c4 {[%emt 0:01:50]} 36. Kf2 {[%emt 0:02:18]} Qf5 {[%emt 0:03:10]} 37. d7 {[%emt 0:00:11]} Qc5+ {[%emt 0:01:26]} 38. Qe3 {[%emt 0:00:21]} Qf5 {[%emt 0:01:47]} 39. Qd2 {[%emt 0:00:09]} Bd5 {[%emt 0:00:55]} 40. Rh6 {[%emt 0:00:28]} Kg7 {[%emt 0:00:33]} 41. Rh4 {[%emt 0:00:39]} Kf7 {[%emt 0:00:22]} 42. Qe2 {[%emt 0:00:12]} Bf3 {[%emt 0:00:36]} 43. Qd2 {[%emt 0:00:01]} Ke7 {[%emt 0:00:19]} 44. Rh8 {[%emt 0:00:11]} Qc5+ {[%emt 0:00:49]} 45. Qe3 {[%emt 0:00:04]} Qxe3+ {[%emt 0:00:08]} 46. Kxe3 {[%emt 0:00:02]} Nd8 {[%emt 0:00:03]} 47. Rh7+ {[%emt 0:00:02]} Kd6 {[%emt 0:00:02]} 48. Kd4 {[%emt 0:00:03]} Nc6+ {[%emt 0:00:03]} 49. Kxc4 {[%emt 0:01:35]} Be4 {[%emt 0:00:09]} 50. Rg7 {[%emt 0:00:09]} Bf5 {[%emt 0:00:03]} 1-0